[Event "XVI Memorial Lezcano Montalvo 2024"]
[Site "Gran Canaria"]
[Date "2024.03.23"]
[Round "1.17"]
[White "Oudeh Mishmesh, Omar"]
[Black "Ascension Suarez, Joel"]
[Result "1-0"]
[ECO "A18"]
[WhiteElo "2301"]
[BlackElo "1731"]
[Annotator "RC"]
[PlyCount "55"]
[EventDate "2024.03.23"]
[EventType "swiss"]
[EventCountry "ESP"]
[SourceTitle "playchess.com"]
[Source "ChessBase"]
[SourceQuality "1"]
[TimeControl "5400+30"]

1. c4 {[%emt 0:00:04]} e6 {[%emt 0:00:39]} 2. Nc3 {[%emt 0:00:06]} Nf6 {[%emt 0:00:08]} 3. e4 {[%emt 0:00:07]} d6 {[%emt 0:01:40]} 4. d4 {[%emt 0:00:14]} Be7 {[%emt 0:00:17]} 5. Nf3 {[%emt 0:00:12]} Nbd7 {[%emt 0:00:41]} 6. Bf4 {[%emt 0:05:11]} h6 {[%emt 0:01:44]} 7. Bd3 {[%emt 0:03:29]} Nh5 {[%emt 0:03:49]} 8. Be3 {[%emt 0:01:27]} e5 {[%emt 0:01:32]} 9. d5 {[%emt 0:09:51]} Nf4 {[%emt 0:01:06]} 10. Bf1 {[%emt 0:02:25]} Nf6 {[%emt 0:01:05]} 11. h3 {[%emt 0:06:54]} Bd7 {[%emt 0:03:42]} 12. Qd2 {[%emt 0:02:09]} Ng6 {[%emt 0:02:45]} 13. Be2 {[%emt 0:02:21]} Qc8 {[%emt 0:04:39]} 14. Rc1 {[%emt 0:16:39]} a6 {[%emt 0:11:47]} 15. Bd3 {[%emt 0:01:00]} Nh5 {[%emt 0:00:28]} 16. Ne2 {[%emt 0:02:34]} c5 {[%emt 0:09:41]} 17. g4 {[%emt 0:02:50]} Nf6 {[%emt 0:02:07]} 18. Ng3 {[%emt 0:00:30]} h5 {[%emt 0:01:33]} 19. g5 {[%emt 0:00:26]} Ng8 {[%emt 0:00:54]} 20. Nf5 {[%emt 0:01:16]} Bf8 {[%emt 0:05:33]} 21. b4 {[%emt 0:02:24]} b6 {[%emt 0:03:20]} 22. bxc5 {[%emt 0:00:20]} bxc5 {[%emt 0:00:36]} 23. Rb1 {[%emt 0:01:05]} Bxf5 {[%emt 0:02:50]} 24. exf5 {[%emt 0:00:04]} N6e7 {[%emt 0:00:19]} 25. Nh4 {[%emt 0:01:35]} f6 {[%emt 0:01:10]} 26. g6 {[%emt 0:01:55]} Nh6 {[%emt 0:00:30]} 27. Bxh6 {[%emt 0:00:08]} Rxh6 {[%emt 0:00:08]} 28. Ke2 {[%emt 0:00:24]} 1-0

[Event "XVI Memorial Lezcano Montalvo 2024"]
[Site "Gran Canaria"]
[Date "2024.03.23"]
[Round "1.18"]
[White "Delgado Armas, Francisco David"]
[Black "Van Zyl-Rudd, Jack"]
[Result "0-1"]
[ECO "B50"]
[WhiteElo "1726"]
[BlackElo "2264"]
[Annotator "RC"]
[PlyCount "72"]
[EventDate "2024.03.23"]
[EventType "swiss"]
[EventCountry "ESP"]
[SourceTitle "playchess.com"]
[Source "ChessBase"]
[SourceQuality "1"]
[TimeControl "5400+30"]

1. e4 {[%emt 0:00:05]} c5 {[%emt 0:00:13]} 2. Nf3 {[%emt 0:00:25]} d6 {[%emt 0:00:06]} 3. Bc4 {[%emt 0:00:23]} Nf6 {[%emt 0:00:05]} 4. Nc3 {[%emt 0:00:45]} e6 {[%emt 0:00:35]} 5. d3 {[%emt 0:02:17]} Nc6 {[%emt 0:00:12]} 6. a3 {[%emt 0:00:06]} Be7 {[%emt 0:00:25]} 7. O-O {[%emt 0:00:57]} O-O {[%emt 0:00:05]} 8. Re1 {[%emt 0:00:59]} a6 {[%emt 0:00:19]} 9. Bd2 {[%emt 0:01:26]} b5 {[%emt 0:00:07]} 10. Ba2 {[%emt 0:00:23]} Bb7 {[%emt 0:00:01]} 11. Ne2 {[%emt 0:01:17]} Rc8 {[%emt 0:08:51]} 12. c3 {[%emt 0:06:36]} Ne5 {[%emt 0:08:19]} 13. Nxe5 {[%emt 0:02:11]} dxe5 {[%emt 0:00:34]} 14. Bb1 {[%emt 0:00:04]} Qc7 {[%emt 0:10:20]} 15. f3 {[%emt 0:10:25]} Rfd8 {[%emt 0:00:09]} 16. Be3 {[%emt 0:00:16]} Nd7 {[%emt 0:11:45]} 17. Qd2 {[%emt 0:04:21]} Nb6 {[%emt 0:02:44]} 18. Ba2 {[%emt 0:02:23]} Nc4 {[%emt 0:06:39]} 19. Bxc4 {[%emt 0:03:48]} bxc4 {[%emt 0:00:02]} 20. d4 {[%emt 0:00:19]} cxd4 {[%emt 0:00:05]} 21. cxd4 {[%emt 0:00:10]} exd4 {[%emt 0:00:11]} 22. Bg5 {[%emt 0:09:46]} f6 {[%emt 0:03:31]} 23. Bh4 {[%emt 0:03:38]} c3 {[%emt 0:00:58]} 24. bxc3 {[%emt 0:03:23]} dxc3 {[%emt 0:00:03]} 25. Qc2 {[%emt 0:00:42]} Bd6 {[%emt 0:07:09]} 26. Bg3 {[%emt 0:02:56]} Bxg3 {[%emt 0:00:07]} 27. Nxg3 {[%emt 0:00:07]} Qc4 {[%emt 0:02:00]} 28. Red1 {[%emt 0:05:49]} Rxd1+ {[%emt 0:00:17]} 29. Rxd1 {[%emt 0:00:13]} Bc6 {[%emt 0:00:05]} 30. Rb1 {[%emt 0:06:05]} Ba4 {[%emt 0:00:26]} 31. Qc1 {[%emt 0:00:23]} c2 {[%emt 0:00:20]} 32. Rb7 {[%emt 0:00:07]} Qd4+ {[%emt 0:00:15]} 33. Kf1 {[%emt 0:04:49]} Qd1+ {[%emt 0:00:02]} 34. Qxd1 {[%emt 0:00:18]} cxd1=Q+ {[%emt 0:00:03]} 35. Kf2 {[%emt 0:00:31]} Qd2+ {[%emt 0:00:09]} 36. Ne2 {[%emt 0:00:39]} Bb5 {[%emt 0:41:18]} 0-1

[Event "XVI Memorial Lezcano Montalvo 2024"]
[Site "Gran Canaria"]
[Date "2024.03.23"]
[Round "1.19"]
[White "Fiorito, Fabian"]
[Black "Matos Espino, Carlos Silverio"]
[Result "1-0"]
[ECO "B30"]
[WhiteElo "2251"]
[BlackElo "1726"]
[Annotator "RC"]
[PlyCount "87"]
[EventDate "2024.03.23"]
[EventType "swiss"]
[EventCountry "ESP"]
[SourceTitle "playchess.com"]
[Source "ChessBase"]
[SourceQuality "1"]
[TimeControl "5400+30"]

1. e4 {[%emt 0:00:01]} c5 {[%emt 0:00:04]} 2. Nf3 {[%emt 0:00:07]} Nc6 {[%emt 0:00:05]} 3. Bb5 {[%emt 0:01:07]} e6 {[%emt 0:00:40]} 4. O-O {[%emt 0:01:32]} Nf6 {[%emt 0:00:44]} 5. Bxc6 {[%emt 0:01:00]} bxc6 {[%emt 0:00:17]} 6. d3 {[%emt 0:00:17]} Be7 {[%emt 0:00:17]} 7. Qe2 {[%emt 0:00:33]} O-O {[%emt 0:00:11]} 8. e5 {[%emt 0:02:40]} Nd5 {[%emt 0:01:38]} 9. c4 {[%emt 0:00:47]} Nb6 {[%emt 0:00:15]} 10. Nc3 {[%emt 0:00:55]} Qc7 {[%emt 0:05:48]} 11. Bf4 {[%emt 0:01:08]} f6 {[%emt 0:01:10]} 12. exf6 {[%emt 0:01:28]} Qxf4 {[%emt 0:00:42]} 13. fxe7 {[%emt 0:00:03]} Re8 {[%emt 0:00:28]} 14. Ne4 {[%emt 0:03:12]} Rxe7 {[%emt 0:05:18]} 15. Nxc5 {[%emt 0:01:10]} d6 {[%emt 0:02:26]} 16. Ne4 {[%emt 0:00:23]} d5 {[%emt 0:04:01]} 17. g3 {[%emt 0:04:10]} Qc7 {[%emt 0:01:18]} 18. Nc3 {[%emt 0:01:26]} e5 {[%emt 0:01:05]} 19. cxd5 {[%emt 0:00:21]} cxd5 {[%emt 0:01:30]} 20. Rac1 {[%emt 0:00:27]} Qb7 {[%emt 0:03:19]} 21. Nd2 {[%emt 0:06:14]} Bf5 {[%emt 0:03:53]} 22. Nb3 {[%emt 0:02:03]} Rc8 {[%emt 0:07:14]} 23. Rfe1 {[%emt 0:01:53]} Qa6 {[%emt 0:05:33]} 24. d4 {[%emt 0:02:02]} Qxe2 {[%emt 0:04:25]} 25. Rxe2 {[%emt 0:00:20]} e4 {[%emt 0:01:40]} 26. Nc5 {[%emt 0:00:49]} Bg4 {[%emt 0:00:26]} 27. Ree1 {[%emt 0:00:30]} Rf7 {[%emt 0:01:38]} 28. b3 {[%emt 0:01:36]} h5 {[%emt 0:04:25]} 29. a4 {[%emt 0:01:38]} a5 {[%emt 0:04:50]} 30. Rc2 {[%emt 0:01:07]} h4 {[%emt 0:01:47]} 31. Nd1 {[%emt 0:02:47]} hxg3 {[%emt 0:03:20]} 32. fxg3 {[%emt 0:01:07]} Rf3 {[%emt 0:06:40]} 33. Ne3 {[%emt 0:01:55]} Bh3 {[%emt 0:00:19]} 34. Rf2 {[%emt 0:00:45]} Rcf8 {[%emt 0:00:39]} 35. Rxf3 {[%emt 0:00:22]} exf3 {[%emt 0:00:48]} 36. Kf2 {[%emt 0:00:12]} Bc8 {[%emt 0:01:40]} 37. h4 {[%emt 0:01:24]} Kh7 {[%emt 0:00:35]} 38. Nd1 {[%emt 0:02:03]} Nd7 {[%emt 0:01:39]} 39. Ne6 {[%emt 0:02:36]} Rf6 {[%emt 0:02:27]} 40. Ng5+ {[%emt 0:00:52]} Kh6 {[%emt 0:00:21]} 41. Re8 {[%emt 0:01:31]} Rf8 {[%emt 0:00:19]} 42. Rxf8 {[%emt 0:00:32]} Nxf8 {[%emt 0:00:09]} 43. Ne3 {[%emt 0:00:40]} Ne6 {[%emt 0:01:45]} 44. Nf5+ {[%emt 0:00:49]} 1-0

[Event "XVI Memorial Lezcano Montalvo 2024"]
[Site "Gran Canaria"]
[Date "2024.03.23"]
[Round "1.20"]
[White "Camara Bordon, Luis Marcos"]
[Black "Perez Guerra, Raul"]
[Result "0-1"]
[ECO "C01"]
[WhiteElo "1718"]
[BlackElo "2250"]
[Annotator "RC"]
[PlyCount "75"]
[EventDate "2024.03.23"]
[EventType "swiss"]
[EventCountry "ESP"]
[SourceTitle "playchess.com"]
[Source "ChessBase"]
[SourceQuality "1"]
[TimeControl "5400+30"]

1. e4 {[%emt 0:00:04]} e6 {[%emt 0:00:03]} 2. d4 {[%emt 0:00:14]} d5 {[%emt 0:00:19]} 3. exd5 {[%emt 0:00:26]} exd5 {[%emt 0:00:05]} 4. c4 {[%emt 0:00:21]} Nf6 {[%emt 0:00:06]} 5. Nc3 {[%emt 0:00:21]} Be7 {[%emt 0:00:32]} 6. Nf3 {[%emt 0:02:04]} O-O {[%emt 0:00:05]} 7. Bd3 {[%emt 0:01:56]} dxc4 {[%emt 0:00:03]} 8. Bxc4 {[%emt 0:00:09]} Nbd7 {[%emt 0:00:08]} 9. O-O {[%emt 0:00:16]} Nb6 {[%emt 0:00:03]} 10. Be2 {[%emt 0:00:38]} c6 {[%emt 0:00:15]} 11. Bf4 {[%emt 0:03:49]} Bg4 {[%emt 0:02:26]} 12. Ne5 {[%emt 0:03:00]} Bxe2 {[%emt 0:00:07]} 13. Nxe2 {[%emt 0:03:31]} Nbd5 {[%emt 0:01:07]} 14. Bg5 {[%emt 0:01:00]} h6 {[%emt 0:00:12]} 15. Bh4 {[%emt 0:00:41]} Qb6 {[%emt 0:00:09]} 16. a4 {[%emt 0:08:03]} a5 {[%emt 0:00:38]} 17. Qc2 {[%emt 0:22:47]} Rad8 {[%emt 0:00:49]} 18. Nc4 {[%emt 0:03:08]} Qa6 {[%emt 0:01:05]} 19. Rfc1 {[%emt 0:08:32]} Nc7 {[%emt 0:00:40]} 20. Qf5 {[%emt 0:07:44]} Rd5 {[%emt 0:00:09]} 21. Qf3 {[%emt 0:02:10]} Ne6 {[%emt 0:05:10]} 22. Bxf6 {[%emt 0:02:12]} Bxf6 {[%emt 0:00:03]} 23. Ra3 {[%emt 0:04:14]} Nxd4 {[%emt 0:00:50]} 24. Nxd4 {[%emt 0:00:33]} Rxd4 {[%emt 0:00:08]} 25. Ne3 {[%emt 0:03:30]} Rfd8 {[%emt 0:00:06]} 26. Nf5 {[%emt 0:01:03]} Rd3 {[%emt 0:00:17]} 27. Qg4 {[%emt 0:04:35]} Kh8 {[%emt 0:01:50]} 28. Qh5 {[%emt 0:00:51]} R8d5 {[%emt 0:01:44]} 29. g4 {[%emt 0:00:53]} Rd1+ {[%emt 0:00:15]} 30. Rxd1 {[%emt 0:00:37]} Rxd1+ {[%emt 0:00:01]} 31. Kg2 {[%emt 0:00:15]} Qf1+ {[%emt 0:00:06]} 32. Kg3 {[%emt 0:16:53]} Be5+ {[%emt 0:00:11]} 33. Kf3 {[%emt 0:00:00]} Qh1+ {[%emt 0:00:26]} 34. Ke3 {[%emt 0:00:00]} Re1+ {[%emt 0:00:03]} 35. Kd2 {[%emt 0:00:00]} Bf4+ {[%emt 0:00:15]} 36. Ne3 {[%emt 0:00:00]} Qf1 {[%emt 0:00:16]} 37. Qh4 {[%emt 0:00:00]} Rd1+ {[%emt 0:00:04]} 38. Kc2 {[%emt 0:00:00]} 0-1

[Event "XVI Memorial Lezcano Montalvo 2024"]
[Site "Gran Canaria"]
[Date "2024.03.23"]
[Round "1.21"]
[White "Damia, Angelo"]
[Black "Vlajkov, Milenko"]
[Result "1-0"]
[ECO "C28"]
[WhiteElo "2240"]
[BlackElo "1716"]
[Annotator "RC"]
[PlyCount "81"]
[EventDate "2024.03.23"]
[EventType "swiss"]
[EventCountry "ESP"]
[SourceTitle "playchess.com"]
[Source "ChessBase"]
[SourceQuality "1"]
[TimeControl "5400+30"]

1. e4 {[%emt 0:00:03]} e5 {[%emt 0:00:10]} 2. Nc3 {[%emt 0:00:18]} Nc6 {[%emt 0:00:12]} 3. Bc4 {[%emt 0:00:07]} Nf6 {[%emt 0:00:19]} 4. d3 {[%emt 0:00:09]} d6 {[%emt 0:00:42]} 5. f4 {[%emt 0:01:13]} exf4 {[%emt 0:00:24]} 6. Bxf4 {[%emt 0:00:15]} Be7 {[%emt 0:01:19]} 7. Nf3 {[%emt 0:00:53]} O-O {[%emt 0:01:35]} 8. Qd2 {[%emt 0:01:10]} Na5 {[%emt 0:00:25]} 9. Bd5 {[%emt 0:00:33]} c6 {[%emt 0:00:08]} 10. Bb3 {[%emt 0:00:04]} Nxb3 {[%emt 0:00:23]} 11. axb3 {[%emt 0:00:05]} d5 {[%emt 0:04:10]} 12. e5 {[%emt 0:00:20]} Nh5 {[%emt 0:00:11]} 13. Be3 {[%emt 0:00:20]} Bh4+ {[%emt 0:00:14]} 14. g3 {[%emt 0:00:35]} Be7 {[%emt 0:00:35]} 15. Qg2 {[%emt 0:03:56]} Bg4 {[%emt 0:00:35]} 16. d4 {[%emt 0:05:40]} Bxf3 {[%emt 0:00:25]} 17. Qxf3 {[%emt 0:00:06]} g6 {[%emt 0:00:13]} 18. Bh6 {[%emt 0:00:26]} Ng7 {[%emt 0:00:46]} 19. O-O {[%emt 0:01:18]} Bg5 {[%emt 0:00:07]} 20. Bxg7 {[%emt 0:01:07]} Kxg7 {[%emt 1:27:37]} 21. Kg2 {[%emt 0:00:36]} f5 {[%emt 0:00:00]} 22. h4 {[%emt 0:01:46]} Bh6 {[%emt 0:00:00]} 23. Ne2 {[%emt 0:00:47]} f4 {[%emt 0:00:00]} 24. Qg4 {[%emt 0:00:14]} fxg3 {[%emt 0:00:00]} 25. Nxg3 {[%emt 0:01:31]} Kg8 {[%emt 0:00:00]} 26. Nh5 {[%emt 0:08:11]} Bg7 {[%emt 0:00:00]} 27. Nf4 {[%emt 1:12:17]} Qe7 {[%emt 0:03:30]} 28. Qe6+ {[%emt 0:00:00]} Qxe6 {[%emt 0:00:00]} 29. Nxe6 {[%emt 0:00:00]} Rxf1 {[%emt 0:00:00]} 30. Kxf1 {[%emt 0:00:00]} Re8 {[%emt 0:00:00]} 31. Nxg7 {[%emt 0:00:00]} Kxg7 {[%emt 0:00:00]} 32. Rxa7 {[%emt 0:00:00]} Re7 {[%emt 0:00:00]} 33. Kf2 {[%emt 0:00:00]} h6 {[%emt 0:00:00]} 34. b4 {[%emt 0:00:00]} g5 {[%emt 0:00:00]} 35. hxg5 {[%emt 0:00:00]} hxg5 {[%emt 0:00:00]} 36. Kg3 {[%emt 0:00:00]} Kg6 {[%emt 0:00:00]} 37. Kg4 {[%emt 0:00:00]} Rh7 {[%emt 0:00:00]} 38. c3 {[%emt 0:00:00]} Rh4+ {[%emt 0:00:00]} 39. Kg3 {[%emt 0:00:00]} Rh7 {[%emt 0:00:00]} 40. Ra1 {[%emt 0:00:00]} Kf5 {[%emt 0:00:00]} 41. Rf1+ {[%emt 0:00:00]} 1-0

[Event "XVI Memorial Lezcano Montalvo 2024"]
[Site "Gran Canaria"]
[Date "2024.03.23"]
[Round "1.23"]
[White "Estremera Panos, Sergio"]
[Black "Fernandez Hernandez, Javier"]
[Result "1-0"]
[ECO "D55"]
[WhiteElo "2233"]
[BlackElo "1690"]
[Annotator "RC"]
[PlyCount "85"]
[EventDate "2024.03.23"]
[EventType "swiss"]
[EventCountry "ESP"]
[SourceTitle "playchess.com"]
[Source "ChessBase"]
[SourceQuality "1"]
[TimeControl "5400+30"]

1. d4 {[%emt 0:00:06]} d5 {[%emt 0:02:11]} 2. c4 {[%emt 0:00:12]} e6 {[%emt 0:00:16]} 3. Nf3 {[%emt 0:00:13]} Be7 {[%emt 0:01:06]} 4. Nc3 {[%emt 0:00:53]} Nf6 {[%emt 0:00:31]} 5. Bg5 {[%emt 0:00:32]} O-O {[%emt 0:01:28]} 6. e3 {[%emt 0:00:15]} a6 {[%emt 0:03:58]} 7. Qc2 {[%emt 0:04:57]} dxc4 {[%emt 0:06:17]} 8. Bxc4 {[%emt 0:00:46]} h6 {[%emt 0:00:05]} 9. Bxf6 {[%emt 0:03:28]} Bxf6 {[%emt 0:00:06]} 10. Rc1 {[%emt 0:05:18]} Nd7 {[%emt 0:00:22]} 11. Rd1 {[%emt 0:10:33]} Qe8 {[%emt 0:05:32]} 12. O-O {[%emt 0:01:25]} c6 {[%emt 0:00:34]} 13. Ne4 {[%emt 0:03:53]} Be7 {[%emt 0:00:10]} 14. Ne5 {[%emt 0:01:10]} Nb6 {[%emt 0:04:34]} 15. Bd3 {[%emt 0:07:16]} Nd5 {[%emt 0:00:16]} 16. a3 {[%emt 0:05:31]} f5 {[%emt 0:02:28]} 17. Nd2 {[%emt 0:03:24]} Bd6 {[%emt 0:00:48]} 18. Ndc4 {[%emt 0:04:19]} Bc7 {[%emt 0:00:11]} 19. g3 {[%emt 0:00:35]} Rf6 {[%emt 0:03:36]} 20. e4 {[%emt 0:00:52]} Ne7 {[%emt 0:00:28]} 21. f4 {[%emt 0:04:47]} b5 {[%emt 0:02:21]} 22. Nd2 {[%emt 0:00:26]} Bb6 {[%emt 0:00:24]} 23. Nb3 {[%emt 0:00:09]} fxe4 {[%emt 0:01:58]} 24. Bxe4 {[%emt 0:00:09]} Nd5 {[%emt 0:00:08]} 25. Rfe1 {[%emt 0:04:27]} Bd7 {[%emt 0:05:25]} 26. Bh7+ {[%emt 0:04:33]} Kh8 {[%emt 0:00:29]} 27. Bg6 {[%emt 0:00:31]} Qc8 {[%emt 0:01:35]} 28. Rc1 {[%emt 0:05:41]} a5 {[%emt 0:02:48]} 29. Nc5 {[%emt 0:03:46]} Be8 {[%emt 0:00:35]} 30. Bxe8 {[%emt 0:05:27]} Qxe8 {[%emt 0:00:07]} 31. Ned7 {[%emt 0:01:06]} Bxc5 {[%emt 0:02:50]} 32. Nxc5 {[%emt 0:00:02]} Qf7 {[%emt 0:01:36]} 33. Nd3 {[%emt 0:03:47]} Rc8 {[%emt 0:06:35]} 34. Ne5 {[%emt 0:00:29]} Qe8 {[%emt 0:00:52]} 35. Qe4 {[%emt 0:01:58]} b4 {[%emt 0:01:10]} 36. Rc5 {[%emt 0:03:42]} bxa3 {[%emt 0:00:38]} 37. bxa3 {[%emt 0:00:01]} a4 {[%emt 0:00:16]} 38. Rec1 {[%emt 0:01:28]} Ne7 {[%emt 0:02:08]} 39. Nxc6 {[%emt 0:01:11]} Nxc6 {[%emt 0:00:08]} 40. Rxc6 {[%emt 0:00:06]} Rxc6 {[%emt 0:00:07]} 41. Rxc6 {[%emt 0:00:19]} Qd7 {[%emt 0:02:36]} 42. Ra6 {[%emt 0:00:48]} g6 {[%emt 0:01:28]} 43. Qa8+ {[%emt 0:00:15]} 1-0

[Event "XVI Memorial Lezcano Montalvo 2024"]
[Site "Gran Canaria"]
[Date "2024.03.23"]
[Round "1.24"]
[White "Garcia Almeida, Valeria"]
[Black "Hernandez Leon, Alberto"]
[Result "0-1"]
[ECO "A31"]
[WhiteElo "1682"]
[BlackElo "2207"]
[Annotator "RC"]
[PlyCount "62"]
[EventDate "2024.03.23"]
[EventType "swiss"]
[EventCountry "ESP"]
[SourceTitle "playchess.com"]
[Source "ChessBase"]
[SourceQuality "1"]
[TimeControl "5400+30"]

1. c4 {[%emt 0:00:04]} g6 {[%emt 0:00:20]} 2. d4 {[%emt 0:00:37]} Bg7 {[%emt 0:00:21]} 3. Nf3 {[%emt 0:01:05]} c5 {[%emt 0:00:26]} 4. Nc3 {[%emt 0:02:02]} Nf6 {[%emt 0:01:17]} 5. e4 {[%emt 0:04:57]} cxd4 {[%emt 0:01:20]} 6. Nxd4 {[%emt 0:00:09]} d6 {[%emt 0:00:10]} 7. g3 {[%emt 0:01:53]} O-O {[%emt 0:01:10]} 8. Bg2 {[%emt 0:01:15]} Bg4 {[%emt 0:09:14]} 9. Nde2 {[%emt 0:01:45]} Nc6 {[%emt 0:02:22]} 10. O-O {[%emt 0:01:53]} Qd7 {[%emt 0:14:20]} 11. Qc2 {[%emt 0:08:46]} Rac8 {[%emt 0:06:11]} 12. Re1 {[%emt 0:05:29]} Ne5 {[%emt 0:04:44]} 13. b3 {[%emt 0:02:18]} b5 {[%emt 0:03:14]} 14. Bf4 {[%emt 0:04:18]} bxc4 {[%emt 0:04:14]} 15. Bxe5 {[%emt 0:01:02]} dxe5 {[%emt 0:01:01]} 16. bxc4 {[%emt 0:01:53]} Rxc4 {[%emt 0:00:21]} 17. Qb3 {[%emt 0:00:29]} Rfc8 {[%emt 0:01:50]} 18. Rad1 {[%emt 0:00:59]} Qc7 {[%emt 0:02:31]} 19. Nb5 {[%emt 0:09:30]} Qc5 {[%emt 0:04:12]} 20. Na3 {[%emt 0:04:20]} Bxe2 {[%emt 0:01:49]} 21. Rxe2 {[%emt 0:00:42]} Rc3 {[%emt 0:00:12]} 22. Rc2 {[%emt 0:00:22]} Rxc2 {[%emt 0:00:38]} 23. Nxc2 {[%emt 0:01:56]} Qxc2 {[%emt 0:00:28]} 24. Rd8+ {[%emt 0:01:59]} Bf8 {[%emt 0:00:10]} 25. Rxc8 {[%emt 0:00:05]} Qxc8 {[%emt 0:00:12]} 26. Qa3 {[%emt 0:00:06]} Qb7 {[%emt 0:00:57]} 27. Qc5 {[%emt 0:00:30]} Qb1+ {[%emt 0:00:19]} 28. Bf1 {[%emt 0:00:03]} Nxe4 {[%emt 0:00:35]} 29. Qxe5 {[%emt 0:00:12]} Nd2 {[%emt 0:00:18]} 30. Qe2 {[%emt 0:00:20]} Nxf1 {[%emt 0:00:08]} 31. Qxf1 {[%emt 0:00:04]} Qxa2 {[%emt 0:00:07]} 0-1

[Event "XVI Memorial Lezcano Montalvo 2024"]
[Site "Gran Canaria"]
[Date "2024.03.23"]
[Round "1.25"]
[White "Marrero Rodriguez, Jorge"]
[Black "Vargas Tinoco, Martin Alonso"]
[Result "1-0"]
[ECO "D10"]
[WhiteElo "2177"]
[BlackElo "1681"]
[Annotator "RC"]
[PlyCount "89"]
[EventDate "2024.03.23"]
[EventType "swiss"]
[EventCountry "ESP"]
[SourceTitle "playchess.com"]
[Source "ChessBase"]
[SourceQuality "1"]
[TimeControl "5400+30"]

1. d4 {[%emt 0:00:07]} d5 {[%emt 0:00:09]} 2. c4 {[%emt 0:00:07]} c6 {[%emt 0:00:08]} 3. cxd5 {[%emt 0:00:57]} cxd5 {[%emt 0:00:10]} 4. Nc3 {[%emt 0:00:07]} e6 {[%emt 0:01:11]} 5. Bf4 {[%emt 0:05:02]} Bd6 {[%emt 0:03:28]} 6. Bxd6 {[%emt 0:03:42]} Qxd6 {[%emt 0:00:08]} 7. Rc1 {[%emt 0:00:07]} Nc6 {[%emt 0:02:46]} 8. Nf3 {[%emt 0:01:12]} f5 {[%emt 0:02:01]} 9. e3 {[%emt 0:04:59]} a6 {[%emt 0:07:10]} 10. Na4 {[%emt 0:08:15]} Nf6 {[%emt 0:05:41]} 11. Nc5 {[%emt 0:01:54]} O-O {[%emt 0:05:55]} 12. Be2 {[%emt 0:06:12]} b6 {[%emt 0:14:40]} 13. Nd3 {[%emt 0:02:20]} Bb7 {[%emt 0:08:27]} 14. O-O {[%emt 0:01:18]} Rac8 {[%emt 0:03:17]} 15. Nfe5 {[%emt 0:02:33]} Rc7 {[%emt 0:09:04]} 16. Qa4 {[%emt 0:03:46]} Rfc8 {[%emt 0:03:54]} 17. Nxc6 {[%emt 0:04:38]} Rxc6 {[%emt 0:03:14]} 18. Rxc6 {[%emt 0:00:10]} Qxc6 {[%emt 0:00:06]} 19. Qa3 {[%emt 0:02:36]} Qe8 {[%emt 0:13:32]} 20. Ne5 {[%emt 0:00:43]} b5 {[%emt 0:01:03]} 21. Qd6 {[%emt 0:01:46]} Ne4 {[%emt 0:02:33]} 22. Qb6 {[%emt 0:00:26]} Qe7 {[%emt 0:01:18]} 23. a4 {[%emt 0:06:10]} bxa4 {[%emt 0:00:39]} 24. Bxa6 {[%emt 0:00:21]} Rc7 {[%emt 0:03:58]} 25. Qa5 {[%emt 0:06:36]} Bxa6 {[%emt 0:04:28]} 26. Qxa6 {[%emt 0:00:06]} g6 {[%emt 0:01:14]} 27. Qxa4 {[%emt 0:00:57]} Kg7 {[%emt 0:01:10]} 28. Nd3 {[%emt 0:09:54]} Rc4 {[%emt 0:00:44]} 29. Qa8 {[%emt 0:00:46]} Qc7 {[%emt 0:00:51]} 30. Ra1 {[%emt 0:00:44]} Qc8 {[%emt 0:01:27]} 31. Qxc8 {[%emt 0:02:15]} Rxc8 {[%emt 0:00:02]} 32. f3 {[%emt 0:00:07]} Nd2 {[%emt 0:01:09]} 33. Ra7+ {[%emt 0:03:37]} Kh6 {[%emt 0:00:40]} 34. Nc5 {[%emt 0:08:48]} Rb8 {[%emt 0:00:19]} 35. Rb7 {[%emt 0:02:15]} Rxb7 {[%emt 0:00:28]} 36. Nxb7 {[%emt 0:00:04]} Nc4 {[%emt 0:00:08]} 37. b4 {[%emt 0:03:17]} Kg7 {[%emt 0:01:04]} 38. Na5 {[%emt 0:01:18]} Nb6 {[%emt 0:00:20]} 39. Kf2 {[%emt 0:00:22]} Kf6 {[%emt 0:00:06]} 40. Ke2 {[%emt 0:01:29]} e5 {[%emt 0:00:35]} 41. b5 {[%emt 0:01:31]} e4 {[%emt 0:00:29]} 42. f4 {[%emt 0:02:33]} Ke6 {[%emt 0:00:44]} 43. Kd2 {[%emt 0:00:08]} Kd7 {[%emt 0:00:35]} 44. Kc3 {[%emt 0:00:44]} Nc4 {[%emt 0:00:25]} 45. Nxc4 {[%emt 0:00:14]} 1-0

[Event "XVI Memorial Lezcano Montalvo 2024"]
[Site "Gran Canaria"]
[Date "2024.03.23"]
[Round "1.26"]
[White "Macias Reyes, Jose Luis"]
[Black "Hernandez Leon, Sergio"]
[Result "0-1"]
[ECO "D02"]
[WhiteElo "1677"]
[BlackElo "2172"]
[Annotator "RC"]
[PlyCount "50"]
[EventDate "2024.03.23"]
[EventType "swiss"]
[EventCountry "ESP"]
[SourceTitle "playchess.com"]
[Source "ChessBase"]
[SourceQuality "1"]
[TimeControl "5400+30"]

1. d4 {[%emt 0:00:00]} Nf6 {[%emt 0:00:00]} 2. Bf4 {[%emt 0:00:00]} e6 {[%emt 0:00:00]} 3. e3 {[%emt 0:00:00]} c5 {[%emt 0:00:00]} 4. c3 {[%emt 0:00:36]} Nc6 {[%emt 0:00:04]} 5. Nf3 {[%emt 0:00:50]} d5 {[%emt 0:00:06]} 6. Nbd2 {[%emt 0:01:03]} Bd6 {[%emt 0:00:11]} 7. Bg3 {[%emt 0:02:26]} O-O {[%emt 0:00:27]} 8. Bd3 {[%emt 0:00:12]} b6 {[%emt 0:00:12]} 9. Ne5 {[%emt 0:00:59]} Bb7 {[%emt 0:00:19]} 10. f4 {[%emt 0:04:17]} Ne7 {[%emt 0:00:11]} 11. Qf3 {[%emt 0:02:23]} Nf5 {[%emt 0:00:48]} 12. Bf2 {[%emt 0:00:50]} Be7 {[%emt 0:00:24]} 13. g4 {[%emt 0:01:59]} Nd6 {[%emt 0:00:10]} 14. Bh4 {[%emt 0:09:49]} Nfe4 {[%emt 0:04:34]} 15. Bxe7 {[%emt 0:00:32]} Qxe7 {[%emt 0:00:00]} 16. Bxe4 {[%emt 0:03:22]} dxe4 {[%emt 0:02:20]} 17. Qf2 {[%emt 0:02:57]} cxd4 {[%emt 0:03:57]} 18. cxd4 {[%emt 0:02:54]} Rac8 {[%emt 0:05:43]} 19. b3 {[%emt 0:08:40]} Ba6 {[%emt 0:03:17]} 20. Nec4 {[%emt 0:12:42]} Nxc4 {[%emt 0:03:52]} 21. bxc4 {[%emt 0:01:06]} Bxc4 {[%emt 0:00:51]} 22. Nxc4 {[%emt 0:00:24]} Rxc4 {[%emt 0:00:21]} 23. O-O {[%emt 0:01:24]} Rfc8 {[%emt 0:00:22]} 24. Qg2 {[%emt 0:01:07]} Rc2 {[%emt 0:02:51]} 25. Qxe4 {[%emt 0:01:29]} Qh4 {[%emt 0:00:33]} 0-1